[Event "Championship of RSO-Alania 2020"]
[Site "Vladikavkaz, Russia"]
[Date "2021.01.08"]
[Round "8.1"]
[White "Koraev, Kazbek"]
[Black "Dryaeva, Lana"]
[Result "1/2-1/2"]
[TimeControl "90+30"]
[WhiteElo "1755"]
[BlackElo "1404"]

1. e4 {[%clk 01:30:57]} {[%emt 00:00:02]} e5 {[%clk 01:30:57]} {[%emt
00:00:04]} 2. Nf3 {[%clk 01:31:02]} {[%emt 00:00:24]} d6 {[%clk 01:31:24]}
{[%emt 00:00:03]} 3. d4 {[%clk 01:30:53]} {[%emt 00:00:39]} exd4 {[%clk
01:31:51]} {[%emt 00:00:04]} 4. Nxd4 {[%clk 01:31:14]} {[%emt 00:00:08]} Nf6
{[%clk 01:32:17]} {[%emt 00:00:05]} 5. Nc3 {[%clk 01:31:33]} {[%emt 00:00:11]}
Be7 {[%clk 01:32:45]} {[%emt 00:00:03]} 6. Bf4 {[%clk 01:30:00]} {[%emt
00:02:02]} O-O {[%clk 01:33:03]} {[%emt 00:00:13]} 7. Qd2 {[%clk 01:26:33]}
{[%emt 00:03:56]} c6 {[%clk 01:22:31]} {[%emt 00:11:02]} 8. f3 {[%clk
01:25:51]} {[%emt 00:01:11]} Be6 {[%clk 01:06:56]} {[%emt 00:16:07]} 9. O-O-O
{[%clk 01:17:52]} {[%emt 00:08:28]} d5 {[%clk 01:06:11]} {[%emt 00:01:14]} 10.
e5 {[%clk 01:01:03]} {[%emt 00:17:20]} Ne8 {[%clk 01:05:27]} {[%emt 00:01:14]}
11. g4 {[%clk 01:00:08]} {[%emt 00:01:25]} b5 {[%clk 00:56:57]} {[%emt
00:09:01]} 12. Nf5 {[%clk 00:45:57]} {[%emt 00:14:40]} a5 {[%clk 00:41:07]}
{[%emt 00:16:21]} 13. Qe3 {[%clk 00:42:40]} {[%emt 00:03:46]} Na6 {[%clk
00:37:29]} {[%emt 00:04:09]} 14. Ne4 {[%clk 00:42:35]} {[%emt 00:00:34]} Kh8
{[%clk 00:25:53]} {[%emt 00:12:07]} 15. Ned6 {[%clk 00:33:09]} {[%emt
00:09:54]} Bxd6 {[%clk 00:17:43]} {[%emt 00:08:42]} 16. Nxd6 {[%clk 00:33:20]}
{[%emt 00:00:18]} Nxd6 {[%clk 00:18:10]} {[%emt 00:00:03]} 17. exd6 {[%clk
00:33:36]} {[%emt 00:00:13]} Qd7 {[%clk 00:17:47]} {[%emt 00:00:55]} 18. h4
{[%clk 00:22:55]} {[%emt 00:11:11]} Qa7 {[%clk 00:16:42]} {[%emt 00:01:35]} 19.
Qd2 {[%clk 00:19:31]} {[%emt 00:03:53]} Qc5 {[%clk 00:12:47]} {[%emt 00:04:27]}
20. h5 {[%clk 00:11:42]} {[%emt 00:08:18]} Nb4 {[%clk 00:06:41]} {[%emt
00:06:38]} 21. h6 {[%clk 00:08:48]} {[%emt 00:03:24]} g6 {[%clk 00:01:16]}
{[%emt 00:05:55]} 22. a3 {[%clk 00:06:25]} {[%emt 00:02:51]} Na6 {[%clk
00:01:13]} {[%emt 00:00:35]} 23. Qe1 {[%clk 00:06:30]} {[%emt 00:00:23]} Rae8
{[%clk 00:00:36]} {[%emt 00:01:08]} 24. Qxa5 {[%clk 00:06:00]} {[%emt
00:00:59]} Ra8 {[%clk 00:00:33]} {[%emt 00:00:33]} 25. Qe1 {[%clk 00:06:13]}
{[%emt 00:00:18]} Rae8 {[%clk 00:01:00]} {[%emt 00:00:03]} 26. Qe3 {[%clk
00:05:18]} {[%emt 00:01:23]} Qxe3+ {[%clk 00:01:07]} {[%emt 00:00:26]} 27. Bxe3
{[%clk 00:05:36]} {[%emt 00:00:10]} Rd8 {[%clk 00:00:52]} {[%emt 00:00:47]} 28.
Bf4 {[%clk 00:05:24]} {[%emt 00:00:41]} Nc5 {[%clk 00:00:57]} {[%emt 00:00:26]}
29. g5 {[%clk 00:01:46]} {[%emt 00:04:07]} Nb7 {[%clk 00:01:01]} {[%emt
00:00:26]} 30. Be5+ {[%clk 00:02:05]} {[%emt 00:00:10]} Kg8 {[%clk 00:01:30]}
{[%emt 00:00:02]} 31. Bh3 {[%clk 00:02:14]} {[%emt 00:00:21]} Bxh3 {[%clk
00:00:51]} {[%emt 00:01:10]} 32. Rxh3 {[%clk 00:02:40]} {[%emt 00:00:03]} Nxd6
{[%clk 00:01:20]} 33. Bxd6 {[%clk 00:01:29]} {[%emt 00:01:41]} Rxd6 {[%clk
00:01:49]} {[%emt 00:00:02]} 34. Re1 {[%clk 00:01:47]} {[%emt 00:00:12]} Re6
{[%clk 00:02:18]} 35. Kd2 {[%clk 00:01:56]} {[%emt 00:00:21]} Rfe8 {[%clk
00:02:21]} {[%emt 00:00:27]} 36. Rxe6 {[%clk 00:02:15]} {[%emt 00:00:10]} Rxe6
{[%clk 00:02:03]} {[%emt 00:00:48]} 37. Rg3 {[%clk 00:02:06]} {[%emt 00:00:39]}
Kf8 {[%clk 00:02:27]} {[%emt 00:00:06]} 38. Kd3 {[%clk 00:02:25]} {[%emt
00:00:10]} Ke7 {[%clk 00:02:45]} {[%emt 00:00:12]} 39. b3 {[%clk 00:02:21]}
{[%emt 00:00:36]} Re1 {[%clk 00:02:44]} {[%emt 00:00:30]} 40. Rg4 {[%clk
00:02:13]} {[%emt 00:00:37]} Ra1 {[%clk 00:01:51]} {[%emt 00:01:24]} 41. a4
{[%clk 00:02:34]} {[%emt 00:00:10]} bxa4 {[%clk 00:01:03]} {[%emt 00:01:18]} 42.
bxa4 {[%clk 00:03:02]} {[%emt 00:00:01]} c5 {[%clk 00:01:03]} {[%emt 00:00:29]}
43. Kc3 {[%clk 00:03:00]} {[%emt 00:00:31]} Ra3+ {[%clk 00:00:59]} {[%emt
00:00:35]} 44. Kb2 {[%clk 00:03:21]} {[%emt 00:00:09]} Rxf3 {[%clk 00:01:28]}
{[%emt 00:00:01]} 45. a5 {[%clk 00:03:04]} {[%emt 00:00:47]} Kd7 {[%clk
00:01:49]} {[%emt 00:00:10]} 46. a6 {[%clk 00:03:26]} {[%emt 00:00:08]} Kc7
{[%clk 00:02:16]} {[%emt 00:00:03]} 47. a7 {[%clk 00:03:51]} {[%emt 00:00:05]}
Kb7 {[%clk 00:02:45]} {[%emt 00:00:01]} 48. Ra4 {[%clk 00:04:13]} {[%emt
00:00:08]} Ka8 {[%clk 00:03:14]} {[%emt 00:00:01]} 49. Ra5 {[%clk 00:04:29]}
{[%emt 00:00:13]} Rf5 {[%clk 00:03:35]} {[%emt 00:00:09]} 50. Rxc5 {[%clk
00:04:52]} {[%emt 00:00:07]} Kxa7 {[%clk 00:03:52]} {[%emt 00:00:14]} 51. Rc7+
{[%clk 00:05:21]} Kb8 {[%clk 00:03:34]} {[%emt 00:00:48]} 52. Re7 {[%clk
00:05:43]} {[%emt 00:00:07]} Kc8 {[%clk 00:03:19]} {[%emt 00:00:46]} 53. Re8+
{[%clk 00:05:38]} {[%emt 00:00:35]} Kd7 {[%clk 00:03:48]} {[%emt 00:00:01]} 54.
Rh8 {[%clk 00:05:59]} {[%emt 00:00:08]} Rxg5 {[%clk 00:04:05]} {[%emt
00:00:14]} 55. Rxh7 {[%clk 00:06:28]} {[%emt 00:00:01]} Ke7 {[%clk 00:04:21]}
{[%emt 00:00:15]} 56. Kc3 {[%clk 00:06:42]} {[%emt 00:00:14]} Rg4 {[%clk
00:04:28]} {[%emt 00:00:24]} 57. Kd3 {[%clk 00:07:00]} {[%emt 00:00:12]} Rh4
{[%clk 00:04:50]} {[%emt 00:00:08]} 58. Rh8 {[%clk 00:07:10]} {[%emt 00:00:19]}
Kf6 {[%clk 00:05:10]} {[%emt 00:00:11]} 59. Ke3 {[%clk 00:07:10]} {[%emt
00:00:30]} g5 {[%clk 00:05:09]} {[%emt 00:00:30]} 60. h7 {[%clk 00:07:14]}
{[%emt 00:00:26]} Rh5 {[%clk 00:00:32]} {[%emt 00:05:07]} 61. Rd8 {[%clk
00:03:28]} {[%emt 00:04:15]} Rxh7 {[%clk 00:00:58]} {[%emt 00:00:05]} 62. Rxd5
{[%clk 00:03:36]} {[%emt 00:00:23]} Rh8 {[%clk 00:00:42]} {[%emt 00:00:46]} 63.
c4 {[%clk 00:03:53]} {[%emt 00:00:12]} Rc8 {[%clk 00:01:06]} {[%emt 00:00:06]}
64. c5 {[%clk 00:03:47]} {[%emt 00:00:36]} Kg6 {[%clk 00:00:42]} {[%emt
00:00:55]} 65. Ke4 {[%clk 00:04:03]} {[%emt 00:00:13]} f6 {[%clk 00:00:33]}
{[%emt 00:00:40]} 66. Kf3 {[%clk 00:04:02]} {[%emt 00:00:30]} f5 {[%clk
00:00:34]} {[%emt 00:00:30]} 67. Kg3 {[%clk 00:04:19]} {[%emt 00:00:12]} Kf6
{[%clk 00:00:41]} {[%emt 00:00:24]} 68. Kf3 {[%clk 00:03:46]} {[%emt 00:01:03]}
Rc6 {[%clk 00:01:03]} {[%emt 00:00:08]} 69. Ke3 {[%clk 00:04:00]} {[%emt
00:00:15]} Ke6 {[%clk 00:01:26]} {[%emt 00:00:08]} 70. Kd4 {[%clk 00:04:16]}
{[%emt 00:00:13]} g4 {[%clk 00:01:16]} {[%emt 00:00:40]} 71. Rd8 {[%clk
00:03:53]} {[%emt 00:00:53]} Rc7 {[%clk 00:01:04]} {[%emt 00:00:42]} 72. Rd6+
{[%clk 00:04:10]} {[%emt 00:00:10]} Kf7 {[%clk 00:00:33]} {[%emt 00:01:04]} 73.
c6 {[%clk 00:03:57]} {[%emt 00:00:42]} g3 {[%clk 00:00:38]} {[%emt 00:00:25]}
74. Ke3 {[%clk 00:04:18]} {[%emt 00:00:09]} Ke7 {[%clk 00:00:33]} {[%emt
00:00:37]} 75. Rg6 {[%clk 00:04:34]} {[%emt 00:00:12]} Kf7 {[%clk 00:00:54]}
{[%emt 00:00:10]} 76. Rd6 {[%clk 00:03:34]} {[%emt 00:01:29]} Ke7 {[%clk
00:01:07]} {[%emt 00:00:17]} 77. Ke4 {[%emt 00:01:01]} 1/2-1/2

[Event "Championship of RSO-Alania 2020"]
[Site "Vladikavkaz, Russia"]
[Date "2021.01.08"]
[Round "8.2"]
[White "Tandelov, Arseny"]
[Black "Hastsaev, Marat"]
[Result "1-0"]
[TimeControl "90+30"]
[WhiteElo "1657"]
[BlackElo "2007"]

1. d4 {[%clk 01:30:58]} {[%emt 00:00:02]} d5 {[%clk 01:30:57]} {[%emt
00:00:04]} 2. Nf3 {[%clk 01:31:25]} {[%emt 00:00:03]} Nf6 {[%clk 01:31:19]}
{[%emt 00:00:08]} 3. Bf4 {[%clk 01:31:51]} {[%emt 00:00:03]} g6 {[%clk
01:31:35]} {[%emt 00:00:15]} 4. e3 {[%clk 01:32:11]} {[%emt 00:00:10]} Bg7
{[%clk 01:31:54]} {[%emt 00:00:11]} 5. c4 {[%emt 00:00:04]} c6 {[%clk
01:31:00]} {[%emt 00:01:21]} 6. Nc3 {[%clk 01:33:04]} {[%emt 00:00:04]} O-O
{[%clk 01:31:05]} {[%emt 00:00:26]} 7. Be2 {[%clk 01:31:47]} {[%emt 00:01:47]}
Nbd7 {[%clk 01:27:27]} {[%emt 00:04:09]} 8. O-O {[%clk 01:31:59]} {[%emt
00:00:17]} Nh5 {[%clk 01:23:52]} {[%emt 00:04:05]} 9. Bg5 {[%clk 01:32:20]}
{[%emt 00:00:09]} h6 {[%clk 01:23:52]} {[%emt 00:00:30]} 10. Bh4 {[%clk
01:32:13]} {[%emt 00:00:37]} Nb6 {[%clk 01:20:02]} {[%emt 00:04:20]} 11. cxd5
{[%clk 01:24:51]} {[%emt 00:07:52]} Nxd5 {[%clk 01:19:40]} {[%emt 00:00:51]} 12.
Qb3 {[%clk 01:23:34]} {[%emt 00:01:47]} Nhf6 {[%clk 01:14:25]} {[%emt
00:05:46]} 13. Rac1 {[%clk 01:21:14]} {[%emt 00:02:50]} Nxc3 {[%clk 01:12:23]}
{[%emt 00:02:32]} 14. bxc3 {[%clk 01:21:31]} {[%emt 00:00:12]} Qb6 {[%clk
01:09:41]} {[%emt 00:03:12]} 15. c4 {[%clk 01:19:40]} {[%emt 00:02:22]} g5
{[%clk 01:08:57]} {[%emt 00:01:14]} 16. Bg3 {[%clk 01:19:58]} {[%emt 00:00:12]}
Ne4 {[%clk 01:08:59]} {[%emt 00:00:28]} 17. Bd3 {[%clk 01:18:20]} {[%emt
00:02:08]} Qxb3 {[%clk 01:07:31]} {[%emt 00:01:58]} 18. axb3 {[%clk 01:18:45]}
{[%emt 00:00:05]} Bf5 {[%clk 01:07:42]} {[%emt 00:00:19]} 19. Be5 {[%clk
01:16:46]} {[%emt 00:02:29]} f6 {[%clk 01:02:54]} {[%emt 00:05:18]} 20. Bc7
{[%clk 01:17:11]} {[%emt 00:00:04]} Rfc8 {[%clk 00:57:48]} {[%emt 00:05:36]} 21.
Ba5 {[%clk 01:16:54]} {[%emt 00:00:47]} Nd6 {[%clk 00:58:08]} {[%emt 00:00:10]}
22. Bxf5 {[%clk 01:17:04]} {[%emt 00:00:20]} Nxf5 {[%clk 00:58:37]} {[%emt
00:00:02]} 23. e4 {[%clk 01:06:40]} {[%emt 00:10:54]} Nd6 {[%clk 00:57:48]}
{[%emt 00:01:19]} 24. e5 {[%clk 01:05:40]} {[%emt 00:01:30]} fxe5 {[%clk
00:56:58]} {[%emt 00:01:20]} 25. dxe5 {[%clk 01:05:10]} {[%emt 00:01:00]} Nf5
{[%clk 00:56:24]} {[%emt 00:01:05]} 26. g4 {[%clk 01:05:06]} {[%emt 00:00:33]}
Nh4 {[%clk 00:55:59]} {[%emt 00:00:55]} 27. Nxh4 {[%clk 01:05:30]} {[%emt
00:00:06]} gxh4 {[%clk 00:56:26]} {[%emt 00:00:04]} 28. f4 {[%clk 01:05:46]}
{[%emt 00:00:13]} b6 {[%clk 00:54:34]} {[%emt 00:02:22]} 29. Be1 {[%clk
01:06:08]} {[%emt 00:00:08]} Rd8 {[%clk 00:54:38]} {[%emt 00:00:27]} 30. Bxh4
{[%clk 01:06:28]} {[%emt 00:00:09]} Kf7 {[%clk 00:55:02]} {[%emt 00:00:06]} 31.
Rcd1 {[%clk 01:06:48]} {[%emt 00:00:10]} a5 {[%clk 00:55:11]} {[%emt 00:00:21]}
32. Bf2 {[%clk 01:04:34]} {[%emt 00:02:44]} c5 {[%clk 00:54:13]} {[%emt
00:01:28]} 33. Bg3 {[%clk 01:04:24]} {[%emt 00:00:40]} e6 {[%clk 00:52:25]}
{[%emt 00:02:19]} 34. f5 {[%clk 01:04:03]} {[%emt 00:00:50]} a4 {[%clk
00:50:33]} {[%emt 00:02:22]} 35. f6 {[%clk 01:02:16]} {[%emt 00:02:17]} Bf8
{[%clk 00:50:56]} {[%emt 00:00:07]} 36. bxa4 {[%clk 00:55:39]} {[%emt
00:07:07]} Rxd1 {[%clk 00:51:17]} {[%emt 00:00:08]} 37. Rxd1 {[%clk 00:56:07]}
{[%emt 00:00:02]} Rxa4 {[%clk 00:51:44]} {[%emt 00:00:04]} 38. Rc1 {[%clk
00:55:04]} {[%emt 00:01:32]} 1-0

[Event "Championship of RSO-Alania 2020"]
[Site "Vladikavkaz, Russia"]
[Date "2021.01.08"]
[Round "8.3"]
[White "Bogov, Khetag"]
[Black "Tsamalaidze, Liana"]
[Result "0-1"]
[TimeControl "90+30"]
[WhiteElo "1263"]
[BlackElo "1446"]

1. Nf3 {[%clk 01:30:57]} {[%emt 00:00:03]} d5 {[%clk 01:30:48]} {[%emt
00:00:13]} 2. c4 {[%clk 01:31:21]} {[%emt 00:00:05]} c6 {[%clk 01:30:57]}
{[%emt 00:00:21]} 3. e3 {[%clk 01:31:39]} {[%emt 00:00:12]} Nf6 {[%clk
01:30:23]} {[%emt 00:01:04]} 4. b3 {[%clk 01:31:56]} {[%emt 00:00:13]} Bf5
{[%clk 01:30:02]} {[%emt 00:00:51]} 5. Be2 {[%clk 01:31:52]} {[%emt 00:00:34]}
h6 {[%clk 01:29:56]} {[%emt 00:00:36]} 6. O-O {[%clk 01:32:05]} {[%emt
00:00:16]} e6 {[%clk 01:29:43]} {[%emt 00:00:43]} 7. Bb2 {[%clk 01:31:28]}
{[%emt 00:01:07]} Bd6 {[%clk 01:29:34]} {[%emt 00:00:39]} 8. Nc3 {[%clk
01:29:38]} {[%emt 00:02:20]} O-O {[%clk 01:29:25]} {[%emt 00:00:38]} 9. Rc1
{[%clk 01:29:20]} {[%emt 00:00:48]} Qe7 {[%clk 01:26:23]} {[%emt 00:03:32]} 10.
d4 {[%clk 01:26:44]} {[%emt 00:03:06]} b6 {[%clk 01:17:10]} {[%emt 00:09:43]}
11. Nd2 {[%clk 01:19:17]} {[%emt 00:07:57]} Ba3 {[%clk 00:58:11]} {[%emt
00:19:30]} 12. Bxa3 {[%clk 01:15:59]} {[%emt 00:03:47]} Qxa3 {[%clk 00:58:35]}
{[%emt 00:00:05]} 13. f3 {[%clk 01:14:27]} {[%emt 00:02:02]} Bh7 {[%clk
00:58:52]} {[%emt 00:00:13]} 14. e4 {[%clk 01:11:39]} {[%emt 00:03:18]} dxe4
{[%clk 00:58:04]} {[%emt 00:01:18]} 15. Ndb1 {[%clk 01:11:32]} {[%emt
00:00:36]} Qe7 {[%clk 00:57:22]} {[%emt 00:01:12]} 16. fxe4 {[%clk 01:11:13]}
{[%emt 00:00:49]} Nxe4 {[%clk 00:56:57]} {[%emt 00:00:55]} 17. Nxe4 {[%clk
01:09:54]} {[%emt 00:01:50]} Bxe4 {[%clk 00:55:38]} {[%emt 00:01:49]} 18. Nc3
{[%clk 01:10:19]} {[%emt 00:00:05]} Bg6 {[%clk 00:48:05]} {[%emt 00:08:03]} 19.
Bf3 {[%clk 01:10:01]} {[%emt 00:00:48]} Rd8 {[%clk 00:45:02]} {[%emt 00:03:33]}
20. Qd2 {[%clk 01:07:45]} {[%emt 00:02:47]} Qh4 {[%clk 00:42:45]} {[%emt
00:02:46]} 21. Rfd1 {[%clk 01:07:42]} {[%emt 00:00:33]} e5 {[%clk 00:40:06]}
{[%emt 00:03:10]} 22. d5 {[%clk 01:02:09]} {[%emt 00:06:03]} e4 {[%clk
00:33:20]} {[%emt 00:07:15]} 23. g3 {[%clk 01:02:20]} {[%emt 00:00:20]} Qe7
{[%clk 00:33:45]} {[%emt 00:00:05]} 24. Qe3 {[%clk 00:56:20]} {[%emt 00:06:30]}
f5 {[%clk 00:33:46]} {[%emt 00:00:28]} 0-1

[Event "Championship of RSO-Alania 2020"]
[Site "Vladikavkaz, Russia"]
[Date "2021.01.08"]
[Round "8.4"]
[White "Ryazanov, Nikolay"]
[Black "Agkatsev, Albert A"]
[Result "1/2-1/2"]
[TimeControl "90+30"]
[WhiteElo "1788"]
[BlackElo "1550"]

1. e4 {[%clk 01:30:59]} {[%emt 00:08:09]} c6 {[%clk 01:30:46]} {[%emt
00:00:16]} 2. Ne2 {[%clk 01:29:33]} {[%emt 00:01:55]} d6 {[%clk 01:26:44]}
{[%emt 00:04:33]} 3. d4 {[%clk 01:29:20]} {[%emt 00:00:42]} Nd7 {[%clk
01:25:25]} {[%emt 00:01:50]} 4. g3 {[%clk 01:28:32]} {[%emt 00:01:18]} g6
{[%clk 01:25:33]} {[%emt 00:00:22]} 5. Bg2 {[%clk 01:28:48]} {[%emt 00:00:13]}
Bg7 {[%clk 01:25:45]} {[%emt 00:00:19]} 6. O-O {[%clk 01:28:59]} {[%emt
00:00:18]} e5 {[%clk 01:25:52]} {[%emt 00:00:23]} 7. c3 {[%clk 01:21:45]}
{[%emt 00:07:43]} Ne7 {[%clk 01:25:07]} {[%emt 00:01:16]} 8. Nd2 {[%clk
01:19:51]} {[%emt 00:02:23]} O-O {[%clk 01:24:32]} {[%emt 00:01:06]} 9. f4
{[%clk 01:17:27]} {[%emt 00:02:53]} exd4 {[%clk 01:05:13]} {[%emt 00:19:50]} 10.
cxd4 {[%clk 01:16:04]} {[%emt 00:01:53]} d5 {[%clk 01:05:02]} {[%emt 00:00:41]}
11. e5 {[%clk 01:15:38]} {[%emt 00:00:56]} c5 {[%clk 00:57:20]} {[%emt
00:08:12]} 12. Nf3 {[%clk 01:13:50]} {[%emt 00:02:17]} cxd4 {[%clk 00:57:03]}
{[%emt 00:00:48]} 13. Nfxd4 {[%clk 01:13:36]} {[%emt 00:00:43]} f6 {[%clk
00:45:18]} {[%emt 00:12:16]} 14. Kh1 {[%clk 01:07:41]} {[%emt 00:06:24]} Nc5
{[%clk 00:39:48]} {[%emt 00:06:00]} 15. b4 {[%clk 00:49:05]} {[%emt 00:19:06]}
Na6 {[%clk 00:34:56]} {[%emt 00:05:22]} 1/2-1/2

[Event "Championship of RSO-Alania 2020"]
[Site "Vladikavkaz, Russia"]
[Date "2021.01.08"]
[Round "8.6"]
[White "Bibilov, Alan"]
[Black "Dzhibilov, David"]
[Result "0-1"]
[TimeControl "90+30"]
[WhiteElo "1073"]
[BlackElo "1363"]

1. e4 {[%clk 01:30:55]} {[%emt 00:00:04]} e5 {[%clk 01:30:47]} {[%emt
00:00:13]} 2. Nf3 {[%clk 01:31:07]} {[%emt 00:00:17]} Nc6 {[%clk 01:31:17]} 3.
d4 {[%clk 01:31:08]} {[%emt 00:00:30]} exd4 {[%emt 00:00:45]} 4. Nxd4 {[%clk
01:31:08]} {[%emt 00:00:28]} Nxd4 {[%clk 01:31:06]} {[%emt 00:00:28]} 5. Qxd4
{[%clk 01:31:11]} {[%emt 00:00:26]} d6 {[%clk 01:31:30]} {[%emt 00:00:07]} 6.
Bc4 {[%clk 01:30:30]} {[%emt 00:01:11]} Nf6 {[%clk 01:30:20]} {[%emt 00:01:39]}
7. O-O {[%clk 01:28:19]} {[%emt 00:02:41]} Be7 {[%clk 01:30:06]} {[%emt
00:00:45]} 8. Nc3 {[%clk 01:26:30]} {[%emt 00:02:19]} O-O {[%clk 01:30:16]}
{[%emt 00:00:20]} 9. Bg5 {[%clk 01:24:14]} {[%emt 00:02:45]} Be6 {[%clk
01:29:06]} {[%emt 00:01:41]} 10. Rad1 {[%clk 01:17:43]} {[%emt 00:06:59]} h6
{[%clk 01:26:40]} {[%emt 00:02:57]} 11. Bh4 {[%clk 01:16:45]} {[%emt 00:01:28]}
Ng4 {[%clk 01:24:49]} {[%emt 00:02:22]} 12. Bxe7 {[%clk 01:16:29]} {[%emt
00:00:45]} Qxe7 {[%clk 01:25:18]} {[%emt 00:00:01]} 13. h3 {[%clk 01:13:36]}
{[%emt 00:03:24]} Ne5 {[%clk 01:25:16]} {[%emt 00:00:30]} 14. Bxe6 {[%clk
01:12:41]} {[%emt 00:01:26]} fxe6 {[%clk 01:25:45]} {[%emt 00:00:02]} 15. f4
{[%clk 01:08:39]} {[%emt 00:04:32]} Nc6 {[%clk 01:25:58]} {[%emt 00:00:16]} 16.
Qc4 {[%clk 01:07:25]} {[%emt 00:01:44]} Kh8 {[%clk 01:26:27]} {[%emt 00:00:01]}
17. f5 {[%clk 01:02:57]} {[%emt 00:04:59]} Rf6 {[%clk 01:24:08]} {[%emt
00:02:49]} 18. fxe6 {[%clk 00:59:30]} {[%emt 00:03:56]} Rxe6 {[%clk 01:24:29]}
{[%emt 00:00:09]} 19. Rf4 {[%clk 00:48:29]} {[%emt 00:11:31]} Ne5 {[%clk
01:22:21]} {[%emt 00:02:39]} 20. Qb3 {[%clk 00:48:33]} {[%emt 00:00:26]} c6
{[%clk 01:21:35]} {[%emt 00:01:16]} 21. Rdf1 {[%clk 00:45:22]} {[%emt
00:03:40]} b5 {[%clk 01:19:12]} {[%emt 00:02:54]} 22. Ne2 {[%clk 00:36:31]}
{[%emt 00:09:19]} Nc4 {[%clk 01:12:56]} {[%emt 00:06:48]} 0-1

[Event "Championship of RSO-Alania 2020"]
[Site "Vladikavkaz, Russia"]
[Date "2021.01.09"]
[Round "9.2"]
[White "Dzhibilov, David"]
[Black "Tandelov, Arseny"]
[Result "0-1"]
[TimeControl "90+30"]
[WhiteElo "1363"]
[BlackElo "1657"]

1. e4 {[%clk 01:30:50]} {[%emt 00:00:09]} c5 {[%clk 01:30:57]} {[%emt
00:00:03]} 2. Nf3 {[%clk 01:31:17]} {[%emt 00:00:04]} Nc6 {[%clk 01:31:17]}
{[%emt 00:00:09]} 3. d4 {[%clk 01:31:45]} {[%emt 00:00:01]} cxd4 {[%clk
01:31:44]} {[%emt 00:00:04]} 4. Nxd4 {[%clk 01:32:09]} {[%emt 00:00:06]} e5
{[%clk 01:32:11]} {[%emt 00:00:03]} 5. Nb5 {[%clk 01:32:38]} {[%emt 00:00:01]}
Nf6 {[%clk 01:32:36]} {[%emt 00:00:05]} 6. N1c3 {[%clk 01:32:50]} {[%emt
00:00:18]} d6 {[%clk 01:33:04]} {[%emt 00:00:03]} 7. Bg5 {[%clk 01:33:11]}
{[%emt 00:00:09]} a6 {[%clk 01:33:28]} {[%emt 00:00:06]} 8. Na3 {[%clk
01:33:30]} {[%emt 00:00:11]} b5 {[%clk 01:33:54]} {[%emt 00:00:04]} 9. Bxf6
{[%clk 01:33:56]} {[%emt 00:00:04]} gxf6 {[%clk 01:34:21]} {[%emt 00:00:03]} 10.
Nd5 {[%clk 01:34:18]} {[%emt 00:00:08]} f5 {[%clk 01:34:46]} {[%emt 00:00:05]}
11. Bd3 {[%clk 01:33:37]} {[%emt 00:01:12]} Be6 {[%clk 01:35:05]} {[%emt
00:00:11]} 12. c3 {[%clk 01:33:19]} {[%emt 00:00:48]} Bxd5 {[%clk 01:35:11]}
{[%emt 00:00:24]} 13. exd5 {[%clk 01:33:48]} {[%emt 00:00:01]} Ne7 {[%clk
01:35:23]} {[%emt 00:00:18]} 14. Nc2 {[%clk 01:33:31]} {[%emt 00:00:47]} Bg7
{[%clk 01:34:52]} {[%emt 00:01:00]} 15. Nb4 {[%clk 01:33:24]} {[%emt 00:00:37]}
O-O {[%clk 01:35:01]} {[%emt 00:00:21]} 16. Qh5 {[%clk 01:30:14]} {[%emt
00:03:40]} e4 {[%clk 01:34:19]} {[%emt 00:01:12]} 17. Bc2 {[%clk 01:30:12]}
{[%emt 00:00:31]} Qd7 {[%clk 01:34:27]} {[%emt 00:00:23]} 18. Rd1 {[%clk
01:28:32]} {[%emt 00:02:10]} Rfe8 {[%clk 01:30:08]} {[%emt 00:04:49]} 19. O-O
{[%clk 01:28:21]} {[%emt 00:00:41]} a5 {[%clk 01:29:13]} {[%emt 00:01:25]} 20.
Nc6 {[%clk 01:28:49]} {[%emt 00:00:02]} Nxc6 {[%clk 01:29:33]} {[%emt
00:00:10]} 21. dxc6 {[%clk 01:29:09]} {[%emt 00:00:11]} Qxc6 {[%clk 01:29:58]}
{[%emt 00:00:05]} 22. Qxf5 {[%emt 00:01:12]} Re5 {[%clk 01:30:50]} {[%emt
00:00:06]} 23. Qg4 {[%clk 01:28:40]} {[%emt 00:00:49]} f5 {[%clk 01:30:03]}
{[%emt 00:01:18]} 24. Qg5 {[%clk 01:26:46]} {[%emt 00:02:24]} Rf8 {[%clk
01:29:57]} {[%emt 00:00:35]} 25. Qd2 {[%clk 01:19:50]} {[%emt 00:07:26]} Rf6
{[%clk 01:28:49]} {[%emt 00:01:38]} 26. Rfe1 {[%clk 01:18:30]} {[%emt
00:01:50]} Rg6 {[%clk 01:28:00]} {[%emt 00:01:20]} 27. g3 {[%clk 01:16:17]}
{[%emt 00:02:42]} a4 {[%clk 01:24:23]} {[%emt 00:04:07]} 28. f3 {[%clk
01:08:40]} {[%emt 00:08:08]} e3 {[%clk 01:16:46]} {[%emt 00:08:07]} 29. Rxe3
{[%clk 01:03:21]} {[%emt 00:05:48]} Bh6 {[%clk 01:16:50]} {[%emt 00:00:26]} 30.
Rxe5 {[%clk 00:52:57]} {[%emt 00:10:54]} Bxd2 {[%clk 01:16:59]} {[%emt
00:00:21]} 31. Rxf5 {[%clk 00:53:25]} {[%emt 00:00:02]} Qb6+ {[%clk 01:16:39]}
{[%emt 00:00:50]} 32. Kg2 {[%clk 00:53:54]} {[%emt 00:00:01]} Qe3 {[%clk
01:16:55]} {[%emt 00:00:14]} 33. Rf1 {[%clk 00:50:20]} {[%emt 00:04:03]} Be1
{[%clk 01:17:07]} {[%emt 00:00:18]} 34. Kh1 {[%clk 00:48:07]} {[%emt 00:02:43]}
Qe2 {[%clk 01:17:26]} {[%emt 00:00:10]} 0-1